[Event "Titled Tuesday Blitz March 28 Early 2023"]
[White "Moroni, Luca Jr"]
[Black "Hasangatin, Ramil"]
[WhiteFideId "865834"]
[BlackFideId "4122160"]
[WhiteElo "2569"]
[BlackElo "2275"]
[Result "1/2-1/2"]
[Round "08"]
[TimeControl "180+2"]
[Date "2023.03.28"]
[WhiteClock "0:00:07"]
[BlackClock "0:00:09"]

1. d4 {[%clk 0:03:00]}  d5 {[%clk 0:02:58]} 2. Bf4 {[%clk 0:02:59]}  Nf6 {[%clk 0:02:57]} 3. e3 {[%clk 0:02:59]}  c5 {[%clk 0:02:57]} 4. dxc5 {[%clk 0:03:00]}  e6 {[%clk 0:02:52]} 5. b4 {[%clk 0:03:00]}  a5 {[%clk 0:02:52]} 6. c3 {[%clk 0:03:00]}  axb4 {[%clk 0:02:45]} 7. cxb4 {[%clk 0:03:01]}  b6 {[%clk 0:02:45]} 8. Bxb8 {[%clk 0:02:58]}  Rxb8 {[%clk 0:02:44]} 9. Bb5+ {[%clk 0:02:57]}  Ke7 {[%clk 0:02:44]} 10. c6 {[%clk 0:02:57]}  Ne4 {[%clk 0:02:43]} 11. Nf3 {[%clk 0:02:52]}  Nd6 {[%clk 0:02:42]} 12. a4 {[%clk 0:02:52]}  f6 {[%clk 0:02:34]} 13. Nc3 {[%clk 0:02:50]}  Kf7 {[%clk 0:02:34]} 14. O-O {[%clk 0:02:50]}  Ra8 {[%clk 0:02:27]} 15. Rc1 {[%clk 0:02:33]}  Nxb5 {[%clk 0:02:25]} 16. axb5 {[%clk 0:02:27]}  Bxb4 {[%clk 0:02:24]} 17. Qb3 {[%clk 0:02:25]}  Qd6 {[%clk 0:02:03]} 18. Ra1 {[%clk 0:01:58]}  Rxa1 {[%clk 0:01:32]} 19. Rxa1 {[%clk 0:01:59]}  Rd8 {[%clk 0:01:32]} 20. Ra7+ {[%clk 0:01:30]}  Kg8 {[%clk 0:01:31]} 21. h3 {[%clk 0:01:20]}  Qc5 {[%clk 0:01:26]} 22. Ne2 {[%clk 0:00:45]}  Qxb5 {[%clk 0:01:23]} 23. Nfd4 {[%clk 0:00:45]}  Qc4 {[%clk 0:01:05]} 24. Qb1 {[%clk 0:00:42]}  Bc5 {[%clk 0:00:32]} 25. Ra8 {[%clk 0:00:37]}  Rf8 {[%clk 0:00:26]} 26. Qb5 {[%clk 0:00:30]}  e5 {[%clk 0:00:19]} 27. Qxc4 {[%clk 0:00:28]}  dxc4 {[%clk 0:00:20]} 28. Nb5 {[%clk 0:00:29]}  Be6 {[%clk 0:00:17]} 29. Rxf8+ {[%clk 0:00:22]}  Kxf8 {[%clk 0:00:17]} 30. c7 {[%clk 0:00:23]}  Bb4 {[%clk 0:00:10]} 31. Na7 {[%clk 0:00:18]}  c3 {[%clk 0:00:10]} 32. c8=Q+ {[%clk 0:00:09]}  Bxc8 {[%clk 0:00:10]} 33. Nxc8 {[%clk 0:00:10]}  c2 {[%clk 0:00:09]} 34. Nxb6 {[%clk 0:00:09]}  Bd2 {[%clk 0:00:10]} 35. Kf1 {[%clk 0:00:06]}  c1=Q+ {[%clk 0:00:10]} 36. Nxc1 {[%clk 0:00:07]}  Bxc1 {[%clk 0:00:11]} 37. Ke2 {[%clk 0:00:08]}  Ba3 {[%clk 0:00:11]} 38. Nc4 {[%clk 0:00:07]}  Bb4 {[%clk 0:00:11]} 39. Kd3 {[%clk 0:00:05]}  Kf7 {[%clk 0:00:10]} 40. g4 {[%clk 0:00:05]}  Ke6 {[%clk 0:00:10]} 41. Ke4 {[%clk 0:00:04]}  g6 {[%clk 0:00:10]} 42. f3 {[%clk 0:00:04]}  f5+ {[%clk 0:00:10]} 43. Kd3 {[%clk 0:00:05]}  Be7 {[%clk 0:00:04]} 44. Na5 {[%clk 0:00:04]}  e4+ {[%clk 0:00:04]} 45. Ke2 {[%clk 0:00:02]}  exf3+ {[%clk 0:00:04]} 46. Kxf3 {[%clk 0:00:03]}  fxg4+ {[%clk 0:00:05]} 47. hxg4 {[%clk 0:00:04]}  h5 {[%clk 0:00:05]} 48. gxh5 {[%clk 0:00:04]}  gxh5 {[%clk 0:00:06]} 49. Nc4 {[%clk 0:00:04]}  Bc5 {[%clk 0:00:06]} 50. Nd2 {[%clk 0:00:04]}  Bxe3 {[%clk 0:00:06]} 51. Kxe3 {[%clk 0:00:05]}  h4 {[%clk 0:00:07]} 52. Nf3 {[%clk 0:00:06]}  h3 {[%clk 0:00:08]} 53. Kf2 {[%clk 0:00:06]}  h2 {[%clk 0:00:09]} 54. Nxh2 {[%clk 0:00:07]} 1/2-1/2


[Site "https://www.chess.com"]

[Event "Titled Tuesday Blitz March 28 Early 2023"]
[White "Subelj, Jan"]
[Black "Salinas Herrera, Pablo"]
[WhiteFideId "14618583"]
[BlackFideId "3407128"]
[WhiteElo "2474"]
[BlackElo "2550"]
[Result "1/2-1/2"]
[Round "08"]
[TimeControl "180+2"]
[Date "2023.03.28"]
[WhiteClock "0:01:07"]
[BlackClock "0:00:12"]

1. e4 {[%clk 0:02:54]}  c5 {[%clk 0:02:59]} 2. Na3 {[%clk 0:02:40]}  Nc6 {[%clk 0:02:55]} 3. Bb5 {[%clk 0:02:37]}  g6 {[%clk 0:02:54]} 4. Bxc6 {[%clk 0:02:36]}  dxc6 {[%clk 0:02:53]} 5. f4 {[%clk 0:02:37]}  Bg7 {[%clk 0:02:52]} 6. d3 {[%clk 0:02:30]}  Nf6 {[%clk 0:02:49]} 7. Nf3 {[%clk 0:02:29]}  O-O {[%clk 0:02:49]} 8. O-O {[%clk 0:02:29]}  b6 {[%clk 0:02:49]} 9. Nc4 {[%clk 0:02:28]}  Ne8 {[%clk 0:02:46]} 10. Be3 {[%clk 0:02:26]}  Nd6 {[%clk 0:02:46]} 11. Nce5 {[%clk 0:02:24]}  Qc7 {[%clk 0:02:46]} 12. a4 {[%clk 0:02:23]}  Rd8 {[%clk 0:02:43]} 13. a5 {[%clk 0:02:21]}  Bb7 {[%clk 0:02:34]} 14. axb6 {[%clk 0:02:08]}  axb6 {[%clk 0:02:34]} 15. Rxa8 {[%clk 0:02:08]}  Bxa8 {[%clk 0:02:34]} 16. Qe2 {[%clk 0:01:57]}  c4 {[%clk 0:02:30]} 17. Nxc4 {[%clk 0:01:45]}  Nxc4 {[%clk 0:02:30]} 18. dxc4 {[%clk 0:01:46]}  c5 {[%clk 0:02:30]} 19. e5 {[%clk 0:01:45]}  Bc6 {[%clk 0:02:08]} 20. b3 {[%clk 0:01:43]}  f6 {[%clk 0:02:06]} 21. exf6 {[%clk 0:01:39]}  exf6 {[%clk 0:02:06]} 22. f5 {[%clk 0:01:35]}  Re8 {[%clk 0:02:06]} 23. Qd2 {[%clk 0:01:33]}  g5 {[%clk 0:02:03]} 24. Nxg5 {[%clk 0:01:30]}  Rd8 {[%clk 0:00:30]} 25. Qc3 {[%clk 0:01:19]}  fxg5 {[%clk 0:00:25]} 26. f6 {[%clk 0:01:20]}  Rf8 {[%clk 0:00:18]} 27. fxg7 {[%clk 0:01:17]}  Rxf1+ {[%clk 0:00:18]} 28. Kxf1 {[%clk 0:01:18]}  Qxh2 {[%clk 0:00:18]} 29. Qf6 {[%clk 0:01:14]}  Bxg2+ {[%clk 0:00:14]} 30. Ke1 {[%clk 0:01:13]}  Qb8 {[%clk 0:00:09]} 31. Bxg5 {[%clk 0:01:08]}  Qe8+ {[%clk 0:00:09]} 32. Kf2 {[%clk 0:01:08]}  Be4 {[%clk 0:00:09]} 33. Bh6 {[%clk 0:01:08]}  Qf7 {[%clk 0:00:07]} 34. Qxf7+ {[%clk 0:01:05]}  Kxf7 {[%clk 0:00:08]} 35. c3 {[%clk 0:01:06]}  Bc2 {[%clk 0:00:07]} 36. b4 {[%clk 0:01:05]}  Bd3 {[%clk 0:00:06]} 37. bxc5 {[%clk 0:01:04]}  bxc5 {[%clk 0:00:07]} 38. Ke3 {[%clk 0:01:04]}  Bxc4 {[%clk 0:00:07]} 39. Kf4 {[%clk 0:01:04]}  Bd3 {[%clk 0:00:06]} 40. Ke5 {[%clk 0:01:04]}  c4 {[%clk 0:00:06]} 41. Kd6 {[%clk 0:01:03]}  Kg8 {[%clk 0:00:06]} 42. Ke7 {[%clk 0:01:03]}  Bf1 {[%clk 0:00:06]} 43. Kf6 {[%clk 0:01:03]}  Bd3 {[%clk 0:00:07]} 44. Bf4 {[%clk 0:01:02]}  Bf1 {[%clk 0:00:08]} 45. Kg5 {[%clk 0:01:02]}  Bd3 {[%clk 0:00:09]} 46. Kh6 {[%clk 0:01:02]}  Bf1 {[%clk 0:00:09]} 47. Be5 {[%clk 0:01:03]}  Bd3 {[%clk 0:00:09]} 48. Bd4 {[%clk 0:01:04]}  Bf1 {[%clk 0:00:10]} 49. Be5 {[%clk 0:01:05]}  Bd3 {[%clk 0:00:11]} 50. Bd4 {[%clk 0:01:06]}  Bf1 {[%clk 0:00:12]} 51. Be5 {[%clk 0:01:07]} 1/2-1/2


[Site "https://www.chess.com"]

[Event "Titled Tuesday Blitz March 28 Early 2023"]
[White "wqws"]
[Black "Timofeev, Artyom"]
[BlackFideId "4140419"]
[WhiteElo "2685"]
[BlackElo "2586"]
[Result "1-0"]
[Round "08"]
[TimeControl "180+2"]
[Date "2023.03.28"]
[WhiteClock "0:00:29"]
[BlackClock "0:00:02"]

1. e4 {[%clk 0:03:00]}  e5 {[%clk 0:02:59]} 2. Nf3 {[%clk 0:03:00]}  d5 {[%clk 0:02:59]} 3. exd5 {[%clk 0:02:45]}  e4 {[%clk 0:02:59]} 4. Ne5 {[%clk 0:02:43]}  Qxd5 {[%clk 0:02:55]} 5. d4 {[%clk 0:02:44]}  exd3 {[%clk 0:02:54]} 6. Nxd3 {[%clk 0:02:42]}  Bf5 {[%clk 0:02:37]} 7. Nc3 {[%clk 0:02:42]}  Qe6+ {[%clk 0:02:37]} 8. Qe2 {[%clk 0:02:27]}  Nc6 {[%clk 0:02:36]} 9. Qxe6+ {[%clk 0:02:25]}  Bxe6 {[%clk 0:02:36]} 10. Bf4 {[%clk 0:02:25]}  O-O-O {[%clk 0:02:33]} 11. O-O-O {[%clk 0:02:26]}  Nf6 {[%clk 0:02:30]} 12. Be2 {[%clk 0:02:22]}  Nd4 {[%clk 0:02:29]} 13. Rhe1 {[%clk 0:02:19]}  Nxe2+ {[%clk 0:02:27]} 14. Rxe2 {[%clk 0:02:19]}  h6 {[%clk 0:02:12]} 15. a3 {[%clk 0:02:14]}  Be7 {[%clk 0:02:00]} 16. Nb5 {[%clk 0:02:09]}  Nd5 {[%clk 0:01:42]} 17. Be5 {[%clk 0:02:07]}  Bd7 {[%clk 0:01:11]} 18. Nc3 {[%clk 0:01:57]}  Bg5+ {[%clk 0:00:58]} 19. Kb1 {[%clk 0:01:38]}  Nxc3+ {[%clk 0:00:49]} 20. Bxc3 {[%clk 0:01:39]}  Rhg8 {[%clk 0:00:46]} 21. Rde1 {[%clk 0:01:34]}  h5 {[%clk 0:00:41]} 22. f4 {[%clk 0:01:27]}  Bh6 {[%clk 0:00:41]} 23. Re7 {[%clk 0:01:24]}  Rgf8 {[%clk 0:00:39]} 24. Ne5 {[%clk 0:01:18]}  Bxf4 {[%clk 0:00:21]} 25. Nxf7 {[%clk 0:01:16]}  Rde8 {[%clk 0:00:21]} 26. Bxg7 {[%clk 0:01:14]}  Rxf7 {[%clk 0:00:20]} 27. Rxe8+ {[%clk 0:01:13]}  Bxe8 {[%clk 0:00:20]} 28. Rxe8+ {[%clk 0:01:14]}  Kd7 {[%clk 0:00:20]} 29. Rg8 {[%clk 0:01:15]}  Bxh2 {[%clk 0:00:20]} 30. Bd4 {[%clk 0:01:12]}  Rf5 {[%clk 0:00:20]} 31. Rg7+ {[%clk 0:01:07]}  Kc6 {[%clk 0:00:20]} 32. Rg6+ {[%clk 0:01:06]}  Bd6 {[%clk 0:00:19]} 33. c4 {[%clk 0:01:03]}  b6 {[%clk 0:00:18]} 34. Kc2 {[%clk 0:01:02]}  Rf4 {[%clk 0:00:18]} 35. Kd3 {[%clk 0:01:02]}  Kd7 {[%clk 0:00:14]} 36. b4 {[%clk 0:01:00]}  Rh4 {[%clk 0:00:11]} 37. c5 {[%clk 0:00:59]}  bxc5 {[%clk 0:00:11]} 38. bxc5 {[%clk 0:01:00]}  Bh2 {[%clk 0:00:07]} 39. c6+ {[%clk 0:01:00]}  Ke8 {[%clk 0:00:07]} 40. Bxa7 {[%clk 0:00:55]}  Ra4 {[%clk 0:00:06]} 41. Bc5 {[%clk 0:00:54]}  Kf7 {[%clk 0:00:05]} 42. Rh6 {[%clk 0:00:52]}  Bf4 {[%clk 0:00:05]} 43. Rxh5 {[%clk 0:00:51]}  Ke6 {[%clk 0:00:05]} 44. Bb4 {[%clk 0:00:50]}  Ra6 {[%clk 0:00:05]} 45. Ke4 {[%clk 0:00:47]}  Bc1 {[%clk 0:00:05]} 46. Re5+ {[%clk 0:00:46]}  Kf6 {[%clk 0:00:04]} 47. Rc5 {[%clk 0:00:45]}  Bxa3 {[%clk 0:00:04]} 48. Bc3+ {[%clk 0:00:44]}  Ke6 {[%clk 0:00:04]} 49. Re5+ {[%clk 0:00:44]}  Kd6 {[%clk 0:00:03]} 50. g4 {[%clk 0:00:39]}  Ra4+ {[%clk 0:00:03]} 51. Kf5 {[%clk 0:00:38]}  Kxc6 {[%clk 0:00:03]} 52. g5 {[%clk 0:00:38]}  Bd6 {[%clk 0:00:03]} 53. Re2 {[%clk 0:00:32]}  Rf4+ {[%clk 0:00:02]} 54. Ke6 {[%clk 0:00:32]}  Rg4 {[%clk 0:00:02]} 55. Kf6 {[%clk 0:00:32]}  Rf4+ {[%clk 0:00:03]} 56. Kg7 {[%clk 0:00:32]}  Rg4 {[%clk 0:00:03]} 57. g6 {[%clk 0:00:32]}  Kd5 {[%clk 0:00:04]} 58. Kf7 {[%clk 0:00:33]}  Rf4+ {[%clk 0:00:04]} 59. Bf6 {[%clk 0:00:32]}  Rg4 {[%clk 0:00:02]} 60. g7 {[%clk 0:00:32]}  c5 {[%clk 0:00:02]} 61. g8=Q {[%clk 0:00:31]}  Rxg8 {[%clk 0:00:03]} 62. Kxg8 {[%clk 0:00:31]}  Bf4 {[%clk 0:00:04]} 63. Kf7 {[%clk 0:00:29]}  c4 {[%clk 0:00:03]} 64. Kg6 {[%clk 0:00:29]}  Bc1 {[%clk 0:00:02]} 65. Kf5 {[%clk 0:00:29]}  Kc5 {[%clk 0:00:02]} 66. Rc2 {[%clk 0:00:29]} 1-0


[Site "https://www.chess.com"]

[Event "Titled Tuesday Blitz March 28 Early 2023"]
[White "Pichot, Alan"]
[Black "Rozman, Levy"]
[WhiteFideId "110973"]
[BlackFideId "2039877"]
[WhiteElo "2573"]
[BlackElo "2376"]
[Result "1-0"]
[Round "08"]
[TimeControl "180+2"]
[Date "2023.03.28"]
[WhiteClock "0:01:41"]
[BlackClock "0:01:26"]

1. e4 {[%clk 0:02:56]}  d5 {[%clk 0:02:57]} 2. exd5 {[%clk 0:02:55]}  Nf6 {[%clk 0:02:57]} 3. d4 {[%clk 0:02:53]}  Bg4 {[%clk 0:02:57]} 4. Be2 {[%clk 0:02:51]}  Bxe2 {[%clk 0:02:55]} 5. Qxe2 {[%clk 0:02:52]}  Qxd5 {[%clk 0:02:55]} 6. Nf3 {[%clk 0:02:52]}  Nc6 {[%clk 0:02:55]} 7. c4 {[%clk 0:02:44]}  Qe4 {[%clk 0:02:51]} 8. Nc3 {[%clk 0:02:38]}  Qxe2+ {[%clk 0:02:48]} 9. Kxe2 {[%clk 0:02:39]}  e6 {[%clk 0:02:43]} 10. Rd1 {[%clk 0:02:39]}  O-O-O {[%clk 0:02:34]} 11. Bf4 {[%clk 0:02:32]}  Bd6 {[%clk 0:02:21]} 12. Bxd6 {[%clk 0:02:24]}  Rxd6 {[%clk 0:02:21]} 13. Rd2 {[%clk 0:02:24]}  h6 {[%clk 0:02:17]} 14. Rad1 {[%clk 0:02:23]}  a6 {[%clk 0:02:15]} 15. h3 {[%clk 0:02:11]}  Rhd8 {[%clk 0:02:14]} 16. a3 {[%clk 0:02:05]}  Re8 {[%clk 0:02:00]} 17. Ne5 {[%clk 0:02:02]}  Nxe5 {[%clk 0:01:53]} 18. dxe5 {[%clk 0:02:03]}  Rxd2+ {[%clk 0:01:53]} 19. Rxd2 {[%clk 0:02:04]}  Nd7 {[%clk 0:01:53]} 20. f4 {[%clk 0:02:03]}  f5 {[%clk 0:01:40]} 21. exf6 {[%clk 0:01:44]}  gxf6 {[%clk 0:01:41]} 22. Kf3 {[%clk 0:01:42]}  Kd8 {[%clk 0:01:26]} 23. Ne4 {[%clk 0:01:41]} 1-0


[Site "https://www.chess.com"]

[Event "Titled Tuesday Blitz March 28 Early 2023"]
[White "Poormosavi, Seyed Kian"]
[Black "Warmerdam, Max"]
[WhiteFideId "12585807"]
[BlackFideId "1048104"]
[WhiteElo "2334"]
[BlackElo "2518"]
[Result "1-0"]
[Round "08"]
[TimeControl "180+2"]
[Date "2023.03.28"]
[WhiteClock "0:02:31"]
[BlackClock "0:01:51"]

1. Nf3 {[%clk 0:02:58]}  Nf6 {[%clk 0:02:59]} 2. g3 {[%clk 0:02:58]}  g6 {[%clk 0:03:00]} 3. Bg2 {[%clk 0:02:59]}  Bg7 {[%clk 0:03:01]} 4. O-O {[%clk 0:02:59]}  O-O {[%clk 0:03:02]} 5. d4 {[%clk 0:02:57]}  d6 {[%clk 0:03:03]} 6. c3 {[%clk 0:02:57]}  Nbd7 {[%clk 0:03:03]} 7. Nbd2 {[%clk 0:02:56]}  e5 {[%clk 0:03:03]} 8. e4 {[%clk 0:02:56]}  a5 {[%clk 0:03:03]} 9. a4 {[%clk 0:02:55]}  b6 {[%clk 0:03:03]} 10. Re1 {[%clk 0:02:55]}  Bb7 {[%clk 0:03:02]} 11. d5 {[%clk 0:02:55]}  Ne8 {[%clk 0:02:43]} 12. Nc4 {[%clk 0:02:51]}  Qe7 {[%clk 0:02:32]} 13. b4 {[%clk 0:02:50]}  Bc8 {[%clk 0:02:27]} 14. bxa5 {[%clk 0:02:48]}  bxa5 {[%clk 0:02:28]} 15. Ba3 {[%clk 0:02:45]}  Kh8 {[%clk 0:02:15]} 16. Rb1 {[%clk 0:02:43]}  f5 {[%clk 0:02:04]} 17. exf5 {[%clk 0:02:36]}  gxf5 {[%clk 0:02:05]} 18. Nfxe5 {[%clk 0:02:33]}  Nxe5 {[%clk 0:02:01]} 19. Nxe5 {[%clk 0:02:32]}  f4 {[%clk 0:01:51]} 20. Ng6+ {[%clk 0:02:31]} 1-0


[Site "https://www.chess.com"]

[Event "Titled Tuesday Blitz March 28 Early 2023"]
[White "Aaditya Dhingra"]
[Black "Ozen, Bahadir"]
[WhiteFideId "25678191"]
[BlackFideId "6337058"]
[WhiteElo "2083"]
[BlackElo "2503"]
[Result "1-0"]
[Round "08"]
[TimeControl "180+2"]
[Date "2023.03.28"]
[WhiteClock "0:00:06"]
[BlackClock "0:00:23"]

1. e4 {[%clk 0:03:00]}  d6 {[%clk 0:02:56]} 2. d4 {[%clk 0:02:59]}  Nf6 {[%clk 0:02:56]} 3. Nc3 {[%clk 0:02:59]}  e5 {[%clk 0:02:56]} 4. Nf3 {[%clk 0:02:58]}  Nbd7 {[%clk 0:02:53]} 5. g4 {[%clk 0:02:57]}  g6 {[%clk 0:02:51]} 6. g5 {[%clk 0:02:55]}  Nh5 {[%clk 0:02:51]} 7. dxe5 {[%clk 0:02:52]}  dxe5 {[%clk 0:02:50]} 8. Be3 {[%clk 0:02:52]}  Bb4 {[%clk 0:02:36]} 9. Qd2 {[%clk 0:02:49]}  O-O {[%clk 0:02:36]} 10. O-O-O {[%clk 0:02:46]}  Qe8 {[%clk 0:02:10]} 11. a3 {[%clk 0:02:42]}  Ba5 {[%clk 0:01:58]} 12. Kb1 {[%clk 0:02:26]}  Bb6 {[%clk 0:01:51]} 13. Nd5 {[%clk 0:02:24]}  c6 {[%clk 0:01:51]} 14. Nxb6 {[%clk 0:02:11]}  axb6 {[%clk 0:01:51]} 15. Qc3 {[%clk 0:02:09]}  Ra4 {[%clk 0:01:43]} 16. Nd2 {[%clk 0:02:02]}  Qe7 {[%clk 0:01:40]} 17. Nc4 {[%clk 0:01:45]}  b5 {[%clk 0:01:40]} 18. Nd6 {[%clk 0:01:44]}  Nb8 {[%clk 0:01:35]} 19. Nxc8 {[%clk 0:01:40]}  Rxc8 {[%clk 0:01:35]} 20. Bh3 {[%clk 0:01:34]}  Re8 {[%clk 0:01:35]} 21. f3 {[%clk 0:01:30]}  Nf4 {[%clk 0:01:22]} 22. Bxf4 {[%clk 0:01:27]}  exf4 {[%clk 0:01:23]} 23. Rd3 {[%clk 0:01:22]}  Qxg5 {[%clk 0:01:16]} 24. Rhd1 {[%clk 0:01:21]}  Rc4 {[%clk 0:01:17]} 25. Qd2 {[%clk 0:01:15]}  Rc5 {[%clk 0:01:15]} 26. Rd8 {[%clk 0:00:12]}  Re5 {[%clk 0:01:08]} 27. Bc8 {[%clk 0:00:12]}  Re7 {[%clk 0:00:59]} 28. Bxb7 {[%clk 0:00:11]}  Qe5 {[%clk 0:00:51]} 29. Rxe8+ {[%clk 0:00:10]}  Rxe8 {[%clk 0:00:51]} 30. Qd6 {[%clk 0:00:10]}  Qxd6 {[%clk 0:00:19]} 31. Rxd6 {[%clk 0:00:11]}  g5 {[%clk 0:00:20]} 32. Bxc6 {[%clk 0:00:10]}  Nxc6 {[%clk 0:00:20]} 33. Rxc6 {[%clk 0:00:10]}  Kg7 {[%clk 0:00:21]} 34. h3 {[%clk 0:00:09]}  h5 {[%clk 0:00:21]} 35. Rc5 {[%clk 0:00:09]}  f6 {[%clk 0:00:22]} 36. Rxb5 {[%clk 0:00:09]}  Rd8 {[%clk 0:00:22]} 37. Rb3 {[%clk 0:00:07]}  Rd1+ {[%clk 0:00:22]} 38. Ka2 {[%clk 0:00:08]}  Rh1 {[%clk 0:00:23]} 39. a4 {[%clk 0:00:08]}  Rxh3 {[%clk 0:00:24]} 40. a5 {[%clk 0:00:08]}  g4 {[%clk 0:00:25]} 41. a6 {[%clk 0:00:07]}  g3 {[%clk 0:00:20]} 42. a7 {[%clk 0:00:07]}  g2 {[%clk 0:00:20]} 43. a8=Q {[%clk 0:00:07]}  g1=Q {[%clk 0:00:21]} 44. Rb7+ {[%clk 0:00:07]}  Kh6 {[%clk 0:00:21]} 45. Qh8+ {[%clk 0:00:06]}  Kg5 {[%clk 0:00:22]} 46. Qg7+ {[%clk 0:00:06]}  Kh4 {[%clk 0:00:23]} 47. Qxg1 {[%clk 0:00:06]} 1-0


[Site "https://www.chess.com"]

[Event "Titled Tuesday Blitz March 28 Early 2023"]
[White "Kilic, Eray"]
[Black "Tica, Sven"]
[WhiteFideId "44517173"]
[BlackFideId "14526948"]
[WhiteElo "2328"]
[BlackElo "2348"]
[Result "0-1"]
[Round "08"]
[TimeControl "180+2"]
[Date "2023.03.28"]
[WhiteClock "0:00:45"]
[BlackClock "0:01:27"]

1. d4 {[%clk 0:03:00]}  g6 {[%clk 0:03:00]} 2. e4 {[%clk 0:03:00]}  Bg7 {[%clk 0:03:00]} 3. Nc3 {[%clk 0:03:01]}  a6 {[%clk 0:03:01]} 4. f4 {[%clk 0:02:58]}  b5 {[%clk 0:03:01]} 5. Nf3 {[%clk 0:02:58]}  Bb7 {[%clk 0:03:02]} 6. Bd3 {[%clk 0:02:59]}  d6 {[%clk 0:03:02]} 7. Qe2 {[%clk 0:02:59]}  Nd7 {[%clk 0:03:02]} 8. e5 {[%clk 0:02:59]}  e6 {[%clk 0:03:02]} 9. Ne4 {[%clk 0:02:58]}  Bxe4 {[%clk 0:03:02]} 10. Bxe4 {[%clk 0:02:57]}  d5 {[%clk 0:03:03]} 11. Bd3 {[%clk 0:02:57]}  c5 {[%clk 0:03:04]} 12. c3 {[%clk 0:02:56]}  c4 {[%clk 0:03:04]} 13. Bc2 {[%clk 0:02:55]}  Ne7 {[%clk 0:03:05]} 14. O-O {[%clk 0:02:50]}  Nc6 {[%clk 0:03:01]} 15. Be3 {[%clk 0:02:47]}  h5 {[%clk 0:02:59]} 16. Bf2 {[%clk 0:02:46]}  Bh6 {[%clk 0:02:58]} 17. Bh4 {[%clk 0:02:44]}  Qb6 {[%clk 0:02:58]} 18. Ng5 {[%clk 0:02:37]}  Bxg5 {[%clk 0:02:50]} 19. Bxg5 {[%clk 0:02:37]}  Ne7 {[%clk 0:02:49]} 20. Kh1 {[%clk 0:02:33]}  Nf5 {[%clk 0:02:47]} 21. Bxf5 {[%clk 0:02:31]}  exf5 {[%clk 0:02:45]} 22. a4 {[%clk 0:02:27]}  O-O {[%clk 0:02:45]} 23. axb5 {[%clk 0:02:25]}  axb5 {[%clk 0:02:45]} 24. Qf3 {[%clk 0:02:24]}  Qc6 {[%clk 0:02:44]} 25. Rfe1 {[%clk 0:02:22]}  Rxa1 {[%clk 0:02:42]} 26. Rxa1 {[%clk 0:02:23]}  Ra8 {[%clk 0:02:42]} 27. Qd1 {[%clk 0:02:23]}  Nf8 {[%clk 0:02:42]} 28. Bf6 {[%clk 0:02:06]}  Nd7 {[%clk 0:02:34]} 29. Bg5 {[%clk 0:02:05]}  Nf8 {[%clk 0:02:35]} 30. Qf1 {[%clk 0:01:58]}  Ne6 {[%clk 0:02:24]} 31. Bh6 {[%clk 0:01:32]}  Kh7 {[%clk 0:02:21]} 32. Bg5 {[%clk 0:01:29]}  b4 {[%clk 0:02:09]} 33. h3 {[%clk 0:01:26]}  b3 {[%clk 0:02:07]} 34. Be7 {[%clk 0:01:23]}  Ra2 {[%clk 0:02:03]} 35. Ba3 {[%clk 0:01:23]}  Rxa1 {[%clk 0:01:54]} 36. Qxa1 {[%clk 0:01:22]}  Nxf4 {[%clk 0:01:54]} 37. Qf1 {[%clk 0:01:20]}  Nd3 {[%clk 0:01:52]} 38. Qf3 {[%clk 0:01:20]}  Qe6 {[%clk 0:01:49]} 39. Qe3 {[%clk 0:01:20]}  f4 {[%clk 0:01:48]} 40. Qf3 {[%clk 0:01:20]}  Kg7 {[%clk 0:01:46]} 41. Kh2 {[%clk 0:01:18]}  h4 {[%clk 0:01:43]} 42. Kg1 {[%clk 0:01:15]}  Nc1 {[%clk 0:01:40]} 43. Qf2 {[%clk 0:01:08]}  g5 {[%clk 0:01:36]} 44. Qf3 {[%clk 0:01:08]}  Kg6 {[%clk 0:01:32]} 45. Qd1 {[%clk 0:00:49]}  Nd3 {[%clk 0:01:32]} 46. Qa1 {[%clk 0:00:49]}  f3 {[%clk 0:01:30]} 47. Qf1 {[%clk 0:00:46]}  f2+ {[%clk 0:01:28]} 48. Kh1 {[%clk 0:00:45]}  Qf5 {[%clk 0:01:27]} 49. Kh2 {[%clk 0:00:44]}  Qf4+ {[%clk 0:01:26]} 50. Kh1 {[%clk 0:00:45]}  Qe4 {[%clk 0:01:27]} 0-1


[Site "https://www.chess.com"]

[Event "Titled Tuesday Blitz March 28 Early 2023"]
[White "Flores, Diego"]
[Black "Danielyan, Vahe"]
[WhiteFideId "108049"]
[BlackFideId "13304828"]
[WhiteElo "2606"]
[BlackElo "2423"]
[Result "0-1"]
[Round "08"]
[TimeControl "180+2"]
[Date "2023.03.28"]
[WhiteClock "0:00:06"]
[BlackClock "0:01:28"]

1. c4 {[%clk 0:03:00]}  e5 {[%clk 0:02:59]} 2. Nc3 {[%clk 0:03:00]}  Nf6 {[%clk 0:02:58]} 3. Nf3 {[%clk 0:03:01]}  Nc6 {[%clk 0:02:57]} 4. e3 {[%clk 0:03:01]}  Bb4 {[%clk 0:02:53]} 5. Nd5 {[%clk 0:03:01]}  Ba5 {[%clk 0:02:54]} 6. a3 {[%clk 0:02:42]}  d6 {[%clk 0:02:54]} 7. b4 {[%clk 0:02:28]}  Bb6 {[%clk 0:02:53]} 8. Nc3 {[%clk 0:02:27]}  O-O {[%clk 0:02:49]} 9. Bb2 {[%clk 0:02:26]}  a5 {[%clk 0:02:47]} 10. Qb3 {[%clk 0:02:09]}  Re8 {[%clk 0:02:42]} 11. c5 {[%clk 0:01:47]}  dxc5 {[%clk 0:02:31]} 12. Bc4 {[%clk 0:01:46]}  Be6 {[%clk 0:02:28]} 13. Ng5 {[%clk 0:01:38]}  Bxc4 {[%clk 0:01:52]} 14. Qxc4 {[%clk 0:01:39]}  Qe7 {[%clk 0:01:52]} 15. bxc5 {[%clk 0:00:57]}  Bxc5 {[%clk 0:01:52]} 16. Nxf7 {[%clk 0:00:57]}  Qxf7 {[%clk 0:01:53]} 17. Qxc5 {[%clk 0:00:57]}  Nd4 {[%clk 0:01:53]} 18. exd4 {[%clk 0:00:21]}  exd4+ {[%clk 0:01:53]} 19. Kf1 {[%clk 0:00:16]}  dxc3 {[%clk 0:01:46]} 20. Bxc3 {[%clk 0:00:17]}  Ne4 {[%clk 0:01:44]} 21. Qe3 {[%clk 0:00:13]}  Rad8 {[%clk 0:01:39]} 22. Re1 {[%clk 0:00:11]}  Qc4+ {[%clk 0:01:32]} 23. Qe2 {[%clk 0:00:06]}  Nxd2+ {[%clk 0:01:28]} 0-1


[Site "https://www.chess.com"]

[Event "Titled Tuesday Blitz March 28 Early 2023"]
[White "Crevatin, Leo"]
[Black "Wagner, Dennis"]
[WhiteFideId "1726307"]
[BlackFideId "24650684"]
[WhiteElo "2190"]
[BlackElo "2470"]
[Result "0-1"]
[Round "08"]
[TimeControl "180+2"]
[Date "2023.03.28"]
[WhiteClock "0:01:54"]
[BlackClock "0:01:41"]

1. d4 {[%clk 0:03:00]}  Nf6 {[%clk 0:02:56]} 2. c4 {[%clk 0:03:00]}  e6 {[%clk 0:02:56]} 3. Nc3 {[%clk 0:03:00]}  Bb4 {[%clk 0:02:57]} 4. e3 {[%clk 0:03:00]}  O-O {[%clk 0:02:56]} 5. a3 {[%clk 0:03:00]}  Bxc3+ {[%clk 0:02:56]} 6. bxc3 {[%clk 0:03:01]}  c5 {[%clk 0:02:44]} 7. Bd3 {[%clk 0:03:01]}  Nc6 {[%clk 0:02:44]} 8. Nf3 {[%clk 0:03:00]}  b6 {[%clk 0:02:37]} 9. O-O {[%clk 0:02:59]}  d6 {[%clk 0:02:27]} 10. e4 {[%clk 0:02:51]}  e5 {[%clk 0:02:27]} 11. d5 {[%clk 0:02:51]}  Ne7 {[%clk 0:02:26]} 12. Re1 {[%clk 0:02:45]}  h6 {[%clk 0:02:24]} 13. Bf1 {[%clk 0:02:42]}  Ng6 {[%clk 0:02:13]} 14. g3 {[%clk 0:02:38]}  Nh7 {[%clk 0:02:12]} 15. a4 {[%clk 0:02:34]}  f5 {[%clk 0:02:07]} 16. exf5 {[%clk 0:02:34]}  Bxf5 {[%clk 0:02:07]} 17. Bd3 {[%clk 0:02:05]}  Qf6 {[%clk 0:01:41]} 18. Bxf5 {[%clk 0:02:02]}  Qxf5 {[%clk 0:01:42]} 19. Be3 {[%clk 0:01:54]}  Qxf3 {[%clk 0:01:41]} 0-1


[Site "https://www.chess.com"]